bitfinex/quotes_ETHUSD_20251212
["timestamp","ask_amount","ask_price","bid_price","bid_amount"]
[1765504022201,0.49,3234.1,3234.0,0.6445]
[1765504022496,0.49,3234.1,3234.0,1.1183]
[1765504023706,1.07047529,3234.1,3234.0,1.1183]
[1765504023884,3.08738746,3239.0,3234.0,1.1183]
[1765504023885,3.09061688,3235.6,3234.0,1.1183]
[1765504024207,0.92836862,3235.3,3235.1,0.1852]
[1765504024691,0.92836862,3235.3,3235.2,0.4505]
[1765504025000,1.41836862,3235.3,3235.2,0.4505]
[1765504025188,1.41836862,3235.3,3235.2,0.9243]
[1765504025394,0.92836862,3235.3,3235.2,0.9243]
[1765504025590,1.41836862,3235.3,3235.2,0.9243]
[1765504025793,5.08974738,3235.3,3235.2,0.9243]
[1765504026676,5.08974738,3235.3,3235.2,0.4505]
[1765504027176,1.07047529,3235.3,3235.2,0.9243]
[1765504027373,4.16137876,3235.3,3235.2,0.9243]
[1765504027784,1.07047529,3235.3,3235.2,0.9243]
[1765504028007,3.09022787,3236.1,3235.2,0.9243]
[1765504028208,0.49,3236.0,3235.3,0.4738]
[1765504028381,1.07047529,3236.0,3235.3,0.4738]
[1765504028578,4.16071014,3236.0,3235.9,0.4505]
[1765504029282,4.16071014,3236.0,3235.9,0.9243]
[1765504029591,0.49,3236.0,3235.9,0.9243]
[1765504029906,0.92806706,3236.4,3235.9,0.9243]
[1765504030105,3.08987573,3236.4,3236.3,0.4505]
[1765504030409,4.16035102,3236.4,3236.3,0.4505]
[1765504030595,6.66975146,3236.4,3235.6,0.4738]
[1765504030910,0.58047529,3236.3,3235.6,0.4738]
[1765504031300,0.49,3236.2,3235.6,0.4738]
[1765504031881,0.58047529,3236.1,3235.6,0.4738]
[1765504032279,0.58047529,3236.1,3236.0,0.4505]
[1765504032509,0.58047529,3236.1,3236.0,0.9243]
[1765504032808,7.2843,3236.5,3236.0,0.9243]
[1765504032809,0.9243,3236.5,3236.0,0.9243]
[1765504033008,0.49,3236.5,3236.4,0.6762]
[1765504033560,7.10673794,3236.9,3236.4,1.146]
[1765504033692,4.01736231,3236.9,3236.8,0.4868]
[1765504033895,3.57937563,3236.9,3236.4,0.1894]
[1765504034082,7.15555126,3236.9,3236.1,0.6592]
[1765504034277,0.58047529,3236.8,3236.1,0.6592]
[1765504034614,0.58047529,3236.8,3236.2,0.4698]
[1765504036384,0.58047529,3236.6,3236.2,0.4698]
[1765504037214,0.49,3236.5,3236.2,0.4698]
[1765504037729,0.49,3236.5,3236.4,0.4677]
[1765504038408,4.16023274,3236.5,3236.4,0.4677]
[1765504038614,4.16023274,3236.5,3236.4,0.9471]
[1765504040012,1.07047529,3236.5,3236.4,0.9471]
[1765504040413,4.16023274,3236.5,3236.4,0.9471]
[1765504041120,3.67023274,3236.5,3236.4,0.9471]
[1765504041347,0.58047529,3236.5,3236.4,0.9471]
[1765504042694,0.58047529,3237.0,3236.4,4.03695292]
[1765504042896,0.49,3237.1,3236.9,0.4677]
[1765504043195,1.07047529,3237.2,3237.0,0.4677]
[1765504043394,1.07047529,3237.2,3236.4,3.08985292]
[1765504043395,1.07047529,3237.2,3237.1,0.4677]
[1765504043894,0.49,3237.2,3237.1,1.147]
[1765504044101,1.07047529,3237.2,3237.1,1.147]
[1765504044391,1.07047529,3237.2,3237.1,0.6676]
[1765504045403,0.58047529,3237.3,3237.1,1.147]
[1765504045602,0.58047529,3237.3,3237.2,0.9471]
[1765504046131,0.58047529,3237.4,3237.2,0.9471]
[1765504046432,0.58047529,3237.4,3237.3,0.9471]
[1765504047636,0.58047529,3237.4,3237.3,0.4677]
[1765504048242,3.66937378,3237.4,3237.3,0.4677]
[1765504050841,0.58047529,3237.4,3237.3,0.4677]
[1765504051040,0.58047529,3237.4,3237.3,0.9471]
[1765504053853,3.66937378,3237.4,3237.3,0.9471]
[1765504054056,3.66937378,3237.4,3237.3,0.4677]
[1765504054262,6.75827227,3237.4,3236.8,0.4794]
[1765504054961,3.66937378,3237.4,3236.8,0.4794]
[1765504055157,3.66937378,3237.4,3237.3,0.4677]
[1765504055661,3.66937378,3237.4,3237.3,0.9471]
[1765504055859,0.002,3237.5,3237.3,0.9471]
[1765504056077,3.09080308,3237.5,3237.4,0.9471]
[1765504057844,0.002,3237.5,3237.4,0.9471]
[1765504058369,0.002,3237.5,3237.4,1.37070184]
[1765504058536,0.002,3237.5,3237.4,0.9471]
[1765504061277,0.002,3237.5,3235.0,1.08428393]
[1765504061278,0.002,3237.5,3236.6,0.4794]
[1765504061564,0.58247529,3237.5,3236.4,0.4794]
[1765504061890,0.58247529,3237.5,3236.1,0.6688]
[1765504061891,0.4794,3237.4,3236.1,0.6688]
[1765504062176,0.58047529,3236.8,3236.1,0.6688]
[1765504062332,0.49,3236.7,3235.7,0.4794]
[1765504062532,0.58047529,3236.8,3235.7,0.4794]
[1765504062759,0.58047529,3236.8,3235.7,3.5699054]
[1765504062760,0.49,3236.6,3235.7,3.5699054]
[1765504063133,0.49,3236.6,3235.8,0.4594]
[1765504063658,0.49,3236.6,3236.5,0.6526]
[1765504064043,4.16013728,3236.6,3236.5,1.112]
[1765504064863,4.16013728,3236.6,3235.7,3.09050486]
[1765504065071,0.58047529,3236.5,3235.7,0.35805049]
[1765504065360,0.49,3236.6,3236.5,0.6526]
[1765504065937,0.49,3236.6,3236.5,1.112]
[1765504066158,4.16013728,3236.6,3236.5,1.112]
[1765504066373,0.49,3236.6,3236.5,1.112]
[1765504067665,3.08966199,3236.6,3236.5,0.4577]
[1765504067839,3.08966199,3236.6,3236.2,0.1949]
[1765504068040,3.08966199,3236.6,3236.3,0.4594]
[1765504068259,6.1792231,3236.7,3236.0,0.4594]
[1765504068455,0.58047529,3236.6,3236.0,0.4594]
[1765504071263,0.58047529,3236.4,3236.1,0.1949]
[1765504071660,0.58047529,3236.4,3236.1,0.6543]
[1765504073573,3.08992213,3236.4,3236.1,0.6543]
[1765504076888,0.58047529,3236.9,3236.3,0.4577]
[1765504077176,0.92783457,3236.9,3236.8,0.4577]
[1765504077550,0.92783457,3236.9,3236.8,0.9171]
[1765504077851,4.0172102,3236.9,3236.4,0.4594]
[1765504078066,0.49,3237.2,3236.8,0.4577]
[1765504078264,0.58047529,3237.0,3236.8,0.4577]
[1765504079587,3.66985092,3236.9,3236.8,0.4577]
[1765504080079,3.66985092,3236.9,3236.6,0.4594]
[1765504080676,0.58047529,3236.9,3236.8,0.4577]
[1765504081561,0.58047529,3236.9,3236.3,3.08992394]
[1765504081763,3.66985117,3236.9,3236.4,0.76839239]
[1765504082280,3.66985117,3236.9,3236.5,0.4594]
[1765504082946,3.66985117,3236.9,3236.4,0.30899239]
[1765504083284,3.66985117,3236.9,3236.4,0.4594]
[1765504083746,3.66985117,3236.9,3236.8,0.4577]
[1765504083955,3.66985117,3236.9,3236.4,0.4594]
[1765504084168,3.66985117,3236.9,3236.4,0.81434332]
[1765504084377,3.66985117,3236.9,3236.5,0.4594]
[1765504085373,3.66985117,3236.9,3236.4,0.35494332]
[1765504085675,0.58047529,3236.6,3235.8,0.4594]
[1765504085873,0.58047529,3236.6,3235.9,0.4594]
[1765504087278,0.58047529,3236.4,3235.9,0.4594]
[1765504088175,0.58047529,3236.4,3236.3,0.4577]
[1765504088557,0.58047529,3236.4,3235.9,0.4594]
[1765504089498,3.08989389,3236.4,3235.9,0.4594]
[1765504090296,0.58047529,3236.3,3235.4,0.4594]
[1765504090597,0.58047529,3236.3,3235.2,3.58096762]
[1765504090771,0.58047529,3236.3,3235.2,4.04036762]
[1765504091098,1.50850503,3236.3,3235.2,3.58096762]
[1765504091301,1.50850503,3236.3,3235.3,0.4594]
[1765504092086,0.58047529,3236.1,3235.3,0.4594]
[1765504092696,0.58047529,3236.1,3235.2,3.58096762]
[1765504092697,0.49,3236.0,3235.2,0.49]
[1765504093084,1.41814746,3236.0,3235.2,0.49]
[1765504093399,1.41814746,3236.0,3235.1,0.1852]
[1765504094599,0.58047529,3235.8,3235.0,0.1852]
[1765504094897,0.58047529,3235.8,3234.5,0.1904]
[1765504095396,0.49,3235.7,3234.6,3.54386817]
[1765504095773,0.49,3235.7,3234.7,0.4523]
[1765504095972,0.49,3235.7,3234.7,0.82572682]
[1765504096191,0.49,3235.7,3234.8,0.4523]
[1765504096583,0.58047529,3235.6,3234.8,0.4523]
[1765504096781,0.58047529,3235.2,3234.8,0.4523]
[1765504096989,0.58047529,3235.5,3234.8,3.54365871]
[1765504097186,0.58047529,3235.5,3235.1,0.4969]
[1765504097670,0.58047529,3235.5,3235.2,0.6371]
[1765504098075,0.58047529,3235.5,3235.4,0.4969]
[1765504098802,3.67118769,3235.5,3235.4,0.4969]
[1765504099408,6.76190009,3235.5,3234.8,0.9423]
[1765504100693,6.76190009,3235.5,3234.5,0.6427]
[1765504101204,6.76190009,3235.5,3234.6,0.4523]
[1765504101895,9.85261249,3235.5,3234.6,0.4523]
[1765504102710,6.76190009,3235.5,3234.7,0.4523]
[1765504104190,0.49,3235.4,3234.5,0.1904]
[1765504104610,6.76190009,3235.5,3234.6,0.4523]
[1765504105012,0.49,3235.4,3234.6,0.4523]
[1765504105386,0.49,3235.4,3234.6,0.87474432]
[1765504105606,0.49,3235.4,3234.6,0.4523]
[1765504105815,0.49,3235.4,3234.7,0.4523]
[1765504106220,0.58047529,3235.2,3234.7,0.4523]
[1765504106421,0.58047529,3235.4,3235.3,0.4969]
[1765504106611,0.58047529,3235.4,3235.3,0.6817]
[1765504106809,0.58047529,3235.4,3235.3,1.134]
[1765504111622,6.17989678,3236.3,3235.3,1.134]
[1765504111927,0.45175377,3236.2,3235.5,0.4969]
[1765504112128,0.58047529,3236.2,3235.5,0.4969]
[1765504112303,0.58047529,3236.2,3235.6,0.4523]
[1765504113926,0.58047529,3236.0,3235.6,0.4523]
[1765504114719,0.58047529,3236.0,3235.0,0.4523]
[1765504114922,0.58047529,3236.0,3235.1,0.1848]
[1765504115094,0.49,3235.9,3235.1,0.1848]
[1765504115396,0.49,3235.9,3235.2,0.4523]
[1765504115802,0.58047529,3235.8,3235.2,0.4523]
[1765504116205,0.58047529,3235.8,3235.1,0.1848]
[1765504116519,0.58047529,3235.8,3235.1,0.6371]
[1765504116724,0.58047529,3235.8,3235.1,1.05892822]
[1765504116923,0.58047529,3235.8,3235.2,0.4523]
[1765504118434,0.58047529,3235.8,3234.7,3.09146587]
[1765504118435,0.58047529,3235.6,3234.5,0.6427]
[1765504118661,0.49,3235.5,3234.5,0.6427]
[1765504118812,0.49,3235.5,3234.6,0.4523]
[1765504119994,0.58047529,3235.6,3235.4,0.6817]
[1765504120198,0.58047529,3235.6,3235.5,0.4969]
[1765504120904,3.67109217,3235.6,3235.5,0.4969]
[1765504122702,0.58047529,3235.6,3235.5,0.9598]
[1765504126511,3.09014844,3236.1,3235.5,0.9598]
[1765504126512,6.18033642,3236.1,3235.5,0.9598]
[1765504126727,0.58047529,3235.8,3235.5,0.9598]
[1765504126922,0.58047529,3235.8,3235.6,0.16346]
[1765504127123,0.58047529,3235.8,3235.7,0.4501]
[1765504127524,0.58047529,3235.8,3235.7,0.913]
[1765504128337,0.58047529,3235.8,3235.7,0.4501]
[1765504128536,5.73434125,3236.5,3235.7,0.913]
[1765504128737,5.73434125,3236.5,3235.8,0.4501]
[1765504128938,5.73434125,3236.5,3235.8,0.913]
[1765504129130,5.73434125,3236.5,3235.9,0.4629]
[1765504129329,3.08985292,3236.4,3235.9,0.4629]
[1765504130042,6.17970584,3236.4,3235.9,0.4629]
[1765504130948,5.73434125,3236.2,3235.5,0.4629]
[1765504131108,5.73434125,3235.9,3235.5,0.4629]
[1765504131510,8.82472881,3235.9,3235.5,0.4629]
[1765504133420,3.09004387,3236.2,3235.8,0.4501]
[1765504133626,0.58047529,3236.1,3235.8,0.4501]
[1765504133828,0.58047529,3236.1,3235.5,0.4629]
[1765504134342,0.58047529,3235.9,3235.5,0.4629]
[1765504135654,3.09033035,3235.9,3235.2,3.09099618]
[1765504135859,5.73434125,3235.7,3235.1,0.1963]
[1765504136420,5.73434125,3235.7,3235.1,0.6592]
[1765504136921,5.73434125,3235.4,3235.1,0.6592]
[1765504138278,8.82519788,3235.4,3235.1,0.1963]
[1765504138423,3.09074533,3235.5,3235.3,0.4501]
[1765504138850,3.09063756,3235.6,3235.2,0.1963]
[1765504138851,3.09053611,3235.7,3235.4,0.913]
[1765504139166,0.58047529,3235.6,3235.5,0.4501]
[1765504141196,3.67109217,3235.6,3235.5,0.4501]
[1765504141563,0.58047529,3235.5,3235.2,0.6592]
[1765504141765,3.67101229,3235.7,3235.5,0.4501]
[1765504141992,0.58047529,3235.7,3235.5,0.4501]
[1765504142297,3.67101754,3235.7,3235.5,0.4501]
[1765504142510,3.67101754,3235.7,3235.3,0.4629]
[1765504142511,0.58047529,3236.0,3235.6,0.913]
[1765504142805,0.58047529,3236.0,3235.7,0.4501]
[1765504143020,0.58047529,3235.8,3235.7,0.4501]
[1765504143219,0.58047529,3235.8,3235.6,0.4629]
[1765504143220,0.58047529,3235.8,3235.4,0.4629]
[1765504145305,3.67091623,3235.8,3235.4,0.4629]
[1765504146265,3.09034677,3235.9,3235.4,0.4629]
[1765504146509,8.82422886,3236.4,3236.0,0.4501]
[1765504146678,0.58047529,3236.3,3236.0,0.4501]
[1765504146880,0.58047529,3236.3,3236.0,0.913]
[1765504147075,0.58047529,3236.2,3236.0,0.913]
[1765504147301,0.58047529,3236.2,3236.1,0.4501]
[1765504147512,0.58047529,3236.2,3235.6,0.49]
[1765504147823,5.73195941,3236.0,3235.3,0.9529]
[1765504148182,5.73195941,3236.0,3235.3,0.49]
[1765504149008,3.09033035,3235.9,3235.3,0.49]
[1765504149826,0.58047529,3235.8,3235.3,0.49]
[1765504150534,0.58047529,3235.8,3235.3,0.9529]
[1765504150936,5.73195941,3235.7,3235.2,0.1963]
[1765504151099,3.09061688,3235.6,3235.2,0.1963]
[1765504151609,3.09061688,3235.6,3235.2,0.6592]
[1765504152528,3.09061688,3235.6,3235.0,0.49]
[1765504152529,5.73195941,3235.4,3235.0,0.49]
[1765504152729,5.73195941,3235.4,3234.7,0.49]
[1765504152936,5.73195941,3235.4,3234.7,3.58147581]
[1765504153105,3.09090347,3235.3,3234.7,4.04247581]
[1765504153433,3.09090347,3235.3,3234.7,1.37428758]
[1765504153607,8.82279651,3235.4,3234.7,4.46572677]
[1765504153813,8.82279651,3235.4,3234.8,0.461]
[1765504154541,0.58047529,3236.0,3234.8,0.461]
[1765504154842,0.58047529,3235.6,3234.8,0.461]
[1765504155024,5.73195941,3235.3,3234.8,0.461]
[1765504155641,0.58047529,3235.6,3235.2,0.69]
[1765504155839,0.58047529,3235.6,3235.3,0.4948]
[1765504156018,0.58047529,3235.6,3235.2,0.69]
[1765504156215,0.58047529,3235.6,3235.2,1.1848]
[1765504156416,0.58047529,3235.6,3235.2,0.4971]
[1765504157430,3.0907124,3235.5,3235.2,0.4971]
[1765504157920,5.73195941,3235.4,3235.0,0.4948]
[1765504158929,5.73195941,3235.4,3234.8,0.4948]
[1765504159530,3.09099901,3235.2,3234.8,0.4948]
[1765504159733,5.73195941,3235.1,3234.8,0.4948]
[1765504160739,0.58047529,3235.0,3234.5,0.1904]
[1765504160941,5.73195941,3234.8,3234.5,0.1904]
[1765504161544,3.09147679,3234.7,3234.3,0.49]
[1765504161710,3.09147679,3234.7,3234.4,0.4948]
[1765504164119,3.09147679,3234.7,3234.0,3.09211207]
[1765504164120,5.73195941,3234.5,3234.0,0.4948]
[1765504164312,5.73195941,3234.6,3233.9,0.6899]
[1765504164513,5.73195941,3234.6,3234.4,0.4971]
[1765504164718,5.73195941,3234.6,3234.1,0.4948]
[1765504165785,5.73195941,3234.3,3233.8,0.001]
[1765504165928,5.73195941,3234.0,3233.8,0.001]
[1765504166238,0.58047529,3234.3,3233.9,0.4948]
[1765504166559,0.58047529,3234.3,3233.9,0.9919]
[1765504166729,0.58047529,3234.5,3234.2,0.69]
[1765504166935,0.58047529,3234.5,3234.4,0.4971]
[1765504167336,0.58047529,3234.5,3234.2,0.1929]
[1765504167536,0.58047529,3234.5,3234.2,0.6877]
[1765504167860,3.67219447,3234.5,3234.2,0.6877]
[1765504168060,3.67219447,3234.5,3234.4,0.4971]
[1765504168238,0.58047529,3234.5,3234.4,0.4971]
[1765504168664,0.58047529,3234.5,3234.2,0.1929]
[1765504168861,3.67214606,3234.5,3234.2,0.1929]
[1765504169045,6.76381683,3234.5,3233.8,0.001]
[1765504169369,6.3124347,3233.9,3233.8,0.001]
[1765504169571,0.58047529,3233.9,3233.8,0.001]
[1765504169932,4.16751685,3233.9,3233.8,0.001]
[1765504171071,9.89947626,3233.9,3233.8,0.001]
[1765504171437,6.8072347,3233.9,3233.8,0.001]
[1765504171845,9.89947626,3233.9,3233.8,0.001]
[1765504172479,9.89947626,3233.9,3233.8,0.9929]
[1765504172480,1.07527529,3233.9,3233.8,0.9929]
[1765504172638,0.58047529,3233.9,3233.8,0.9929]
[1765504174168,0.58047529,3233.9,3233.8,0.4981]
[1765504174672,0.58047529,3233.9,3233.8,0.9929]
[1765504175567,0.58047529,3233.9,3233.8,0.4981]
[1765504176169,0.58047529,3233.9,3233.8,0.9929]
[1765504176546,0.58047529,3234.4,3233.8,4.08523718]
[1765504176750,3.67224652,3234.4,3233.9,0.4948]
[1765504179969,5.73195941,3234.9,3234.3,0.69]
[1765504180180,12.73612507,3234.3,3233.8,0.001]
[1765504180385,6.3124347,3233.9,3233.4,0.001]
[1765504180537,5.73195941,3233.5,3233.4,0.001]
[1765504180743,8.8245835,3233.5,3233.4,0.001]
[1765504181036,9.5122835,3233.5,3233.4,0.001]
[1765504182171,10.09275879,3233.5,3233.4,0.001]
[1765504183470,1.26817529,3233.5,3233.4,0.001]
[1765504183675,5.73195941,3234.0,3233.4,0.9807]
[1765504183676,3.0923212,3233.9,3233.4,0.9807]
[1765504183975,0.189,3233.6,3233.4,0.9807]
[1765504184175,0.189,3233.6,3233.5,0.4856]
[1765504184354,0.189,3233.6,3233.5,0.9797]
[1765504185346,3.28152845,3233.6,3233.4,0.001]
[1765504185848,0.189,3233.6,3233.5,0.4941]
[1765504187558,0.189,3233.6,3233.5,0.9797]
[1765504188476,0.189,3233.6,3233.4,0.001]
[1765504188477,3.09262409,3233.5,3233.4,0.001]
[1765504188650,3.09262409,3233.5,3233.3,0.001]
[1765504188651,0.58047529,3233.4,3233.3,0.001]
[1765504188849,0.98597929,3233.4,3233.3,0.001]
[1765504189651,4.07869902,3233.4,3233.3,0.001]
[1765504190553,5.00776628,3233.4,3233.3,0.001]
[1765504191772,5.09226228,3233.4,3233.3,0.001]
[1765504196993,4.60226228,3233.4,3233.3,0.4951]
[1765504197298,1.50954255,3233.4,3233.3,0.4951]
[1765504197788,0.92906726,3233.4,3233.3,0.9807]
[1765504198000,4.60226228,3233.4,3233.3,0.9807]
[1765504198182,4.60226228,3233.4,3233.3,0.4951]
[1765504199593,4.60226228,3233.4,3233.3,0.001]
[1765504201707,1.50954255,3233.4,3233.3,0.4951]
[1765504201863,7.49719057,3234.6,3233.3,0.9807]
[1765504202061,0.4951,3234.1,3233.6,0.4941]
[1765504202288,0.4951,3234.1,3233.6,0.9797]
[1765504202719,0.4951,3234.1,3233.6,0.4941]
[1765504202911,0.4951,3234.1,3234.0,0.4941]
[1765504203099,6.1833359,3234.5,3234.0,0.4941]
[1765504203297,0.4941,3234.3,3234.0,0.4941]
[1765504203517,0.4941,3234.3,3233.7,0.4856]
[1765504204219,0.405504,3233.7,3233.3,0.001]
[1765504204418,0.405504,3233.4,3233.3,0.001]
[1765504206921,4.07869902,3233.4,3233.3,0.001]
[1765504207325,4.56429902,3233.4,3233.3,0.001]
[1765504208520,4.64879502,3233.4,3233.3,0.001]
[1765504210396,5.05429902,3233.4,3233.3,0.001]
[1765504211708,4.15879502,3233.4,3233.3,0.001]
[1765504212031,4.64879502,3233.4,3233.3,0.001]
[1765504213436,4.06831973,3233.4,3233.3,0.4735]
[1765504213599,4.64879502,3233.4,3233.3,0.001]
[1765504213799,4.64879502,3233.4,3233.3,0.4735]
[1765504214208,4.64879502,3233.4,3233.3,0.001]
[1765504214915,4.64879502,3233.4,3233.3,0.4735]
[1765504215624,4.64879502,3233.4,3233.3,0.001]
[1765504215826,4.64879502,3233.4,3233.3,0.9453]
[1765504216198,4.15879502,3233.4,3233.3,0.9453]
[1765504220950,3.67319502,3233.4,3233.3,0.9453]
[1765504224435,0.58047529,3233.4,3233.3,0.9453]
[1765504224933,3.67319502,3233.4,3233.3,0.9453]
[1765504227811,0.58047529,3233.4,3233.3,0.9453]
[1765504228358,3.67319502,3233.4,3233.3,0.9453]
[1765504231319,3.67319502,3233.4,3233.3,0.4895]
[1765504232812,0.45413935,3234.4,3233.3,1.4353]
[1765504233007,9.27471711,3234.6,3233.5,6.22892329]
[1765504233212,0.49,3234.5,3233.5,6.22892329]
[1765504233856,5.74042329,3233.8,3233.3,0.001]
[1765504234039,0.405504,3233.4,3233.3,0.001]
[1765504234228,0.98597929,3233.4,3233.3,0.001]
[1765504234745,0.405504,3233.6,3233.3,0.001]
[1765504234942,0.98597929,3233.4,3233.3,0.001]
[1765504235440,1.26898926,3233.4,3233.3,0.001]
[1765504237028,4.36170899,3233.4,3233.3,0.001]
[1765504240115,3.67319502,3233.4,3233.3,0.001]
[1765504240322,4.16319502,3233.4,3233.3,0.001]
[1765504245945,4.85170899,3233.4,3233.3,0.001]
[1765504248127,4.16319502,3233.4,3233.3,0.001]
[1765504248754,4.16319502,3233.4,3233.3,0.5001]
[1765504248934,4.16319502,3233.4,3233.3,0.001]
[1765504249650,3.67319502,3233.4,3233.3,0.5001]
[1765504249851,3.67319502,3233.4,3233.3,0.9986]
[1765504250040,3.67319502,3233.4,3233.3,0.5001]
[1765504250246,3.67319502,3233.4,3233.3,0.9986]
[1765504250755,3.67319502,3233.4,3233.3,0.5001]
[1765504251850,3.67319502,3233.4,3233.3,0.001]
[1765504252056,3.67319502,3233.4,3233.3,0.5001]
[1765504252831,3.67319502,3233.4,3233.3,0.001]
[1765504253559,3.67319502,3233.4,3233.3,0.5001]
[1765504254448,3.67319502,3233.4,3233.3,0.9986]
[1765504255361,3.67319502,3233.4,3233.3,0.5001]
[1765504257546,3.67319502,3233.4,3233.3,0.9986]
[1765504258661,3.67319502,3233.4,3233.3,0.5001]
[1765504258842,3.67319502,3233.4,3233.3,0.001]
[1765504260068,3.67319502,3233.4,3233.3,0.9986]
[1765504260446,3.09200692,3234.2,3233.3,0.9986]
[1765504260766,0.58047529,3233.9,3233.4,0.4985]
[1765504260936,3.09214594,3234.0,3233.4,0.4985]
[1765504261140,3.09214594,3234.0,3233.9,0.4991]
[1765504261338,0.002,3234.7,3233.9,0.4991]
[1765504261559,3.09157237,3234.6,3234.2,0.1902]
[1765504261746,0.492,3234.7,3234.2,0.1902]
[1765504261747,3.09176354,3234.4,3234.2,0.1902]
[1765504261951,3.09176354,3234.4,3234.2,0.6887]
[1765504262263,3.09176354,3234.4,3234.3,0.4991]
[1765504264275,0.58047529,3234.5,3234.3,0.4991]
[1765504264768,0.58047529,3234.5,3234.4,0.4991]
[1765504266577,3.67214324,3234.5,3234.4,0.4991]
[1765504267069,3.67214324,3234.5,3234.3,0.4985]
[1765504267070,6.76381119,3234.5,3234.0,0.4985]
[1765504267275,6.76381119,3234.5,3234.1,0.1902]
[1765504267778,6.76381119,3234.5,3234.1,0.6887]
[1765504268276,3.67214324,3234.5,3234.4,0.4991]
[1765504268775,3.67214324,3234.5,3234.4,0.9976]
[1765504268974,3.09159856,3234.6,3234.4,0.9976]
[1765504269177,0.58047529,3234.5,3234.4,0.4985]
[1765504269374,0.58047529,3234.5,3234.1,0.1902]
[1765504269577,0.58047529,3234.5,3234.4,0.4991]
[1765504270151,0.58047529,3234.5,3234.4,0.9976]
[1765504270679,3.67214324,3234.5,3234.4,0.9976]
[1765504271387,3.0915778,3234.6,3234.4,0.9976]
[1765504271585,0.58047529,3234.5,3234.1,0.1902]
[1765504272079,0.58047529,3234.5,3234.4,0.4991]
[1765504272486,0.58047529,3234.5,3234.4,0.9976]
[1765504272982,0.002,3234.7,3234.4,0.9976]
[1765504273286,3.09348569,3234.7,3234.6,0.4681]
[1765504273754,3.09348569,3234.7,3234.6,0.955]
[1765504275057,0.002,3234.7,3234.6,0.955]
[1765504276764,0.002,3234.7,3234.1,0.1902]
[1765504277088,0.58047529,3234.6,3234.1,0.1902]
[1765504277275,0.58047529,3234.6,3234.2,0.4633]
[1765504277475,0.58047529,3234.6,3234.5,0.4561]
[1765504278074,0.58047529,3234.6,3234.1,0.1902]
[1765504278697,0.58047529,3234.6,3234.1,0.6535]
[1765504278891,0.58047529,3234.6,3234.5,0.4561]
[1765504279087,3.67204766,3234.6,3234.5,0.4561]
[1765504279500,9.8551924,3234.6,3233.8,0.4633]
[1765504279996,6.76362003,3234.6,3233.8,0.4633]
[1765504281201,6.76362003,3234.6,3233.8,0.4633]
[1765504282301,6.76362003,3234.6,3233.5,0.49]
[1765504282302,9.837303,3234.3,3233.5,0.4633]
[1765504282465,0.49,3234.3,3233.5,0.4633]
[1765504282672,0.77300997,3234.3,3233.5,0.4633]
[1765504283383,0.77300997,3234.3,3233.3,0.001]
[1765504283586,13.840458,3234.1,3233.3,0.001]
[1765504283878,0.58047529,3233.9,3233.3,0.001]
[1765504284091,0.49,3233.9,3233.3,0.001]
[1765504285168,1.07047529,3233.9,3233.3,0.001]
[1765504285368,6.02104486,3233.7,3233.3,0.001]
[1765504285565,0.58047529,3233.4,3233.3,0.001]
[1765504286372,0.58047529,3233.4,3233.3,0.4571]
[1765504286568,6.31851018,3233.4,3233.3,0.001]
[1765504286998,0.58047529,3233.4,3233.3,0.001]
[1765504287578,3.67319502,3233.4,3233.3,0.001]
[1765504288711,3.67319502,3233.4,3233.3,0.9204]
[1765504290100,3.67319502,3233.4,3233.3,0.001]
[1765504293707,3.67319502,3233.4,3233.3,0.4571]
[1765504293902,3.67319502,3233.4,3233.3,0.001]
[1765504294818,3.67319502,3233.4,3233.3,0.9204]
[1765504295310,1.50937282,3234.1,3233.3,0.9204]
[1765504295511,3.09197778,3234.2,3233.4,0.9194]
[1765504295512,0.58047529,3233.9,3233.4,0.9194]
[1765504295983,0.58047529,3233.9,3233.5,0.4633]
[1765504296879,6.67429188,3234.0,3233.5,0.4633]
[1765504296880,0.58047529,3233.7,3233.5,0.4633]
[1765504297308,0.58047529,3233.7,3233.6,0.4561]
[1765504298213,0.58047529,3233.7,3233.6,0.9194]
[1765504298421,0.58047529,3233.7,3233.3,0.001]
[1765504300699,0.58047529,3233.5,3233.3,0.001]
[1765504301993,0.86348526,3233.5,3233.3,0.001]
[1765504302705,3.67319502,3233.4,3233.3,0.001]
[1765504303443,4.07869902,3233.4,3233.3,0.001]
[1765504303641,3.67319502,3233.4,3233.3,0.001]
[1765504304836,3.67319502,3233.4,3233.3,0.9421]
[1765504304837,0.58047529,3233.4,3233.3,0.9421]
[1765504305095,0.49,3234.1,3233.3,0.9421]
[1765504305294,0.49,3234.1,3233.3,0.4571]
[1765504305494,0.49,3234.1,3233.4,0.485]
[1765504306701,6.18429188,3234.0,3233.4,0.485]
[1765504307338,0.58047529,3234.0,3233.9,0.4561]
[1765504308124,0.58047529,3234.0,3233.6,0.485]
[1765504308326,0.58047529,3234.0,3233.9,0.4561]
[1765504308708,3.67262123,3234.0,3233.9,0.4561]
[1765504311514,3.67262123,3234.0,3233.9,0.9411]
[1765504311712,6.76476717,3234.0,3233.3,0.001]
[1765504311930,6.76476717,3234.0,3233.5,0.485]
[1765504312425,3.67262123,3234.0,3233.9,0.4561]
[1765504313081,6.76476717,3234.0,3233.5,0.485]
[1765504313920,3.67262123,3234.0,3233.9,0.4561]
[1765504315277,6.76476717,3234.0,3233.7,0.485]
[1765504315487,3.67262123,3234.0,3233.9,0.4561]
[1765504316842,6.76476717,3234.0,3233.7,0.485]
[1765504317239,6.76476717,3234.0,3233.5,0.485]
[1765504318078,3.67262123,3234.0,3233.9,0.4561]
[1765504318750,3.67262123,3234.0,3233.9,0.9411]
[1765504320078,3.67262123,3234.0,3233.9,0.4561]
[1765504320648,6.76476717,3234.0,3233.3,0.001]
[1765504320849,6.76476717,3234.0,3233.5,0.485]
[1765504326507,3.09197806,3234.2,3233.9,0.4561]
[1765504326684,0.58047529,3234.1,3234.0,0.4561]